bitfinex/quotes_SOLUSD_20251103
["timestamp","ask_amount","ask_price","bid_price","bid_amount"]
[1762169201628,0.67,174.98,174.94,6.39596987]
[1762169201847,3.83667001,174.97,174.94,6.39596987]
[1762169202040,0.67,174.98,174.96,1.84150589]
[1762169202243,3.83658331,174.97,174.96,1.84150589]
[1762169205451,3.83658331,174.95,174.94,7.55775145]
[1762169208140,3.83658331,174.95,174.94,18.02657914]
[1762169208647,4.75623037,175.01,174.94,32.31719306]
[1762169208830,3.84255364,175.0,174.95,10.46882769]
[1762169209036,3.84255364,174.99,174.97,9.78882769]
[1762169209237,0.67,175.01,174.97,9.78882769]
[1762169209463,3.84171621,175.0,174.97,9.78882769]
[1762169209639,0.67,175.01,174.97,10.46882769]
[1762169209840,3.84173345,175.0,174.98,5.71493885]
[1762169210056,3.84173345,175.0,174.97,10.46882769]
[1762169210057,3.84173345,174.99,174.97,9.78882769]
[1762169210264,3.84173345,174.98,174.94,15.50505153]
[1762169210561,3.84173345,174.98,174.94,20.2612819]
[1762169210562,3.84173345,174.97,174.94,20.2612819]
[1762169210759,0.67,174.98,174.94,20.9412819]
[1762169211050,3.84150934,174.97,174.94,20.2612819]
[1762169211258,0.67,174.98,174.96,1.84150589]
[1762169211438,3.84129124,174.97,174.96,1.84150589]
[1762169211643,11.14025877,175.01,174.96,1.84150589]
[1762169211644,0.67,175.0,174.96,1.84150589]
[1762169211846,3.84137438,174.99,174.97,1.84150589]
[1762169212044,3.84137438,174.98,174.97,1.84150589]
[1762169212957,3.84137438,174.98,174.94,16.1831163]
[1762169213276,0.67,174.99,174.97,1.84150589]
[1762169213466,3.84103648,174.98,174.97,1.84150589]
[1762169215451,3.84103648,174.98,174.97,7.55677136]
[1762169216558,0.67,175.01,174.97,7.55677136]
[1762169216766,3.84046803,175.0,174.99,1.84150589]
[1762169217269,4.50046803,175.0,174.98,1.84150589]
[1762169217568,3.84046803,174.99,174.98,1.84150589]
[1762169220581,3.84046803,174.99,174.98,7.55644474]
[1762169220743,4.75623037,175.04,174.98,8.23644474]
[1762169220744,54.7,175.03,174.98,8.23644474]
[1762169221076,54.7,175.03,175.01,1.84150589]
[1762169221077,3.84158556,175.02,175.01,1.84150589]
[1762169221357,4.50158556,175.02,175.01,1.84150589]
[1762169222075,4.50158556,175.02,174.97,26.98569463]
[1762169222274,4.50158556,175.01,174.97,9.78882769]
[1762169222455,3.84158556,175.0,174.97,9.78882769]
[1762169222651,0.66,175.01,174.97,9.78882769]
[1762169222851,3.84167629,175.0,174.97,9.78882769]
[1762169223160,3.84183512,174.99,174.98,5.71493885]
[1762169223562,3.84183512,174.99,174.98,7.55644474]
[1762169223875,3.84183512,174.99,174.98,8.23644474]
[1762169224245,1.84150589,175.02,174.93,0.54323779]
[1762169224472,1.84150589,175.02,174.86,0.1]
[1762169224473,20.592,174.94,174.86,0.1]
[1762169224775,4.50095979,174.93,174.87,1.84150589]
[1762169224960,4.50095979,174.93,174.86,0.1]
[1762169224961,1.84150589,174.91,174.86,0.1]
[1762169225279,3.84095979,174.9,174.86,1.94150589]
[1762169225452,3.84095979,174.89,174.86,1.94150589]
[1762169225652,5.7173938,174.91,174.86,7.66028991]
[1762169225854,0.66,174.89,174.86,7.66028991]
[1762169226076,0.66,174.89,174.86,1.94150589]
[1762169226257,0.66,174.89,174.86,0.1]
[1762169226576,0.66,174.89,174.86,5.81885035]
[1762169226774,0.66,174.96,174.89,9.78882769]
[1762169226973,3.83997368,174.95,174.89,30.38082769]
[1762169227171,0.66,174.96,174.94,1.84150589]
[1762169227358,3.84096504,174.95,174.94,7.55770248]
[1762169228078,3.84096504,174.95,174.94,1.84150589]
[1762169229078,3.84096504,174.95,174.93,1.84150589]
[1762169229263,3.84418817,174.94,174.93,1.84150589]
[1762169229675,0.66,174.96,174.93,1.84150589]
[1762169229882,3.8446664,174.95,174.93,1.84150589]
[1762169230061,0.66,174.96,174.93,1.84150589]
[1762169230258,3.84510248,174.95,174.93,1.84150589]
[1762169230467,0.66,174.96,174.93,1.84150589]
[1762169230683,3.84570018,174.95,174.93,1.84150589]
[1762169230973,0.66,174.96,174.91,15.50579203]
[1762169231181,3.84546982,174.95,174.93,1.84150589]
[1762169231370,6.3756454,174.96,174.91,9.78882769]
[1762169231562,4.50567572,174.95,174.92,1.84150589]
[1762169231765,0.66,174.95,174.92,1.84150589]
[1762169231968,0.66,174.94,174.91,11.63033358]
[1762169232174,0.66,174.94,174.91,17.3475416]
[1762169233476,3.84550973,174.93,174.91,17.3475416]
[1762169233660,0.66,174.94,174.91,17.3475416]
[1762169233976,3.84550973,174.93,174.91,17.3475416]
[1762169234174,0.66,174.94,174.91,17.3475416]
[1762169234365,4.50714995,174.93,174.91,17.3475416]
[1762169234560,3.84714995,174.92,174.91,1.84150589]
[1762169234761,3.84714995,174.92,174.91,7.55873189]
[1762169235979,54.7,174.96,174.91,7.55873189]
[1762169235980,0.66,174.95,174.91,7.55873189]
[1762169236170,3.84675975,174.94,174.91,6.397226]
[1762169236368,55.36,174.96,174.93,1.84150589]
[1762169236562,3.84671951,174.95,174.93,9.78882769]
[1762169236758,54.7,174.96,174.93,9.78882769]
[1762169237170,0.66,174.99,174.93,9.78882769]
[1762169237359,3.84621335,174.98,174.93,10.46882769]
[1762169237554,3.84621335,174.97,174.95,9.78882769]
[1762169237762,4.75623037,175.0,174.96,1.84150589]
[1762169238061,3.84620505,174.99,174.98,1.84150589]
[1762169238291,3.84620505,174.99,174.97,1.84150589]
[1762169238480,3.84620505,174.98,174.97,1.84150589]
[1762169239871,10.22117803,174.98,174.94,13.58150589]
[1762169240075,4.50620505,174.97,174.94,1.84150589]
[1762169240385,4.50620505,174.96,174.94,1.84150589]
[1762169240566,3.84620505,174.95,174.94,1.84150589]
[1762169241693,3.84620505,174.95,174.94,7.55775145]
[1762169241982,3.84620505,174.95,174.93,13.58150589]
[1762169242175,3.84620505,174.94,174.93,23.37033358]
[1762169242359,3.84620505,174.94,174.93,29.08690592]
[1762169242565,3.84620505,174.94,174.93,7.55807823]
[1762169243066,3.84620505,174.94,174.93,1.84150589]
[1762169243369,3.84620505,174.94,174.93,7.55807823]
[1762169244988,0.66,174.97,174.93,8.23807823]
[1762169245194,3.84355283,174.96,174.95,1.84150589]
[1762169245687,4.50355283,174.96,174.94,1.84150589]
[1762169245993,3.84355283,174.95,174.94,1.84150589]
[1762169247188,4.49355283,174.95,174.92,1.84150589]
[1762169247366,4.49355283,174.94,174.89,24.08335339]
[1762169247571,3.84355283,174.93,174.92,1.84150589]
[1762169247981,4.49355283,174.93,174.92,1.84150589]
[1762169248181,3.84355283,174.93,174.92,1.84150589]
[1762169249293,4.49355283,174.93,174.91,1.84150589]
[1762169249598,4.49173292,174.92,174.9,1.84150589]
[1762169249792,0.65,174.92,174.9,1.84150589]
[1762169250492,59.45623037,174.97,174.89,17.45787981]
[1762169250797,4.49182167,174.96,174.93,1.84150589]
[1762169250990,3.84182167,174.95,174.94,1.84150589]
[1762169253700,3.84182167,174.95,174.94,7.55775145]
[1762169254693,3.84182167,174.95,174.94,5.71624556]
[1762169254997,3.84182167,174.95,174.94,7.55775145]
[1762169255774,55.64795262,175.01,174.94,7.55775145]
[1762169256096,58.54564855,175.0,174.95,1.84150589]
[1762169256400,54.7,175.0,174.95,1.84150589]
[1762169257093,60.41428571,175.0,174.95,1.84150589]
[1762169257788,0.65,174.99,174.95,1.84150589]
[1762169258201,6.36486525,174.99,174.94,5.71624556]
[1762169258403,6.36486525,174.99,174.94,7.55775145]
[1762169260174,6.36486525,174.99,174.94,5.71624556]
[1762169260371,6.36486525,174.99,174.94,8.33278522]
[1762169260794,5.71486525,174.99,174.94,8.33278522]
[1762169260970,6.42511464,174.98,174.93,5.71646176]
[1762169261174,6.42511464,174.98,174.93,8.33300142]
[1762169261381,0.71,174.97,174.93,8.33300142]
[1762169261893,54.7,174.99,174.96,2.61653966]
[1762169262094,103.01,175.06,174.98,2.61653966]
[1762169262095,5.7127268,175.05,174.98,2.61653966]
[1762169262301,0.71,175.05,175.01,2.61653966]
[1762169262489,6.42173736,175.08,175.04,2.61653966]
[1762169262691,0.71,175.08,175.05,2.61653966]
[1762169262999,6.42170544,175.08,175.05,2.61653966]
[1762169263178,6.42170544,175.08,175.03,2.61653966]
[1762169263490,0.71,175.07,175.03,2.61653966]
[1762169264392,5.71170544,175.08,175.03,2.61653966]
[1762169264583,6.42170544,175.08,175.03,2.61653966]
[1762169264907,6.42170544,175.08,175.05,2.61653966]
[1762169265283,0.71,175.08,175.05,2.61653966]
[1762169265488,6.42174797,175.08,175.06,2.61653966]
[1762169266375,0.71,175.13,175.07,2.61653966]
[1762169266589,0.71,175.13,175.1,2.61653966]
[1762169266792,0.71,175.13,175.09,2.61653966]
[1762169267183,6.42013105,175.13,175.09,2.61653966]
[1762169267703,0.71,175.12,175.09,2.61653966]
[1762169267876,3.83721539,175.11,175.09,2.61653966]
[1762169268080,3.83721539,175.1,175.09,2.61653966]
[1762169268887,4.54721539,175.1,175.09,2.61653966]
[1762169269604,3.83721539,175.1,175.09,2.61653966]
[1762169269906,4.54721539,175.1,175.09,2.61653966]
[1762169270988,3.83721539,175.1,175.09,2.61653966]
[1762169271706,3.83721539,175.1,175.09,9.0178881]
[1762169272004,3.83721539,175.13,175.09,9.0178881]
[1762169272212,0.91,175.14,175.12,2.61653966]
[1762169272390,0.91,175.14,175.13,2.61653966]
[1762169272591,4.73989823,175.14,175.13,2.61653966]
[1762169273508,4.02989823,175.14,175.13,2.61653966]
[1762169273703,4.02989823,175.14,175.13,3.30653966]
[1762169273906,0.2,175.14,175.13,9.01658362]
[1762169274103,0.2,175.14,175.13,8.32658362]
[1762169275311,0.91,175.14,175.13,2.61653966]
[1762169275606,0.2,175.14,175.13,2.61653966]
[1762169275989,0.2,175.14,175.04,9.78882769]
[1762169275990,8.07015263,175.14,175.04,9.78882769]
[1762169276206,2.61653966,175.12,175.06,2.61653966]
[1762169276404,3.82989823,175.12,175.07,2.61653966]
[1762169276608,0.7,175.11,175.07,2.61653966]
[1762169276793,4.52989823,175.11,175.07,2.61653966]
[1762169276998,0.7,175.11,175.06,2.61653966]
[1762169277198,5.71102227,175.1,175.05,3.30653966]
[1762169277712,6.41102227,175.1,175.05,3.30653966]
[1762169277886,6.41102227,175.1,175.05,8.98908884]
[1762169278086,6.41102227,175.1,175.05,8.32908884]
[1762169278291,6.41102227,175.1,175.06,0.66]
[1762169278503,3.82989823,175.11,175.07,6.67343331]
[1762169278697,5.71043408,175.12,175.07,6.67343331]
[1762169278884,0.7,175.11,175.07,6.67343331]
[1762169279084,6.41043408,175.12,175.07,7.33343331]
[1762169279290,10.24033231,175.12,175.07,7.33343331]
[1762169279613,0.7,175.11,175.07,7.33343331]
[1762169279816,0.7,175.11,175.07,0.66]
[1762169280009,4.52989823,175.11,175.07,0.66]
[1762169280314,3.82989823,175.11,175.08,6.67343331]
[1762169280516,9.54033231,175.12,175.08,6.67343331]
[1762169280695,10.24033231,175.12,175.08,7.33343331]
[1762169280889,3.82989823,175.13,175.11,6.67343331]
[1762169281091,0.2,175.14,175.11,6.67343331]
[1762169281092,0.2,175.14,175.13,5.71004396]
[1762169281313,0.2,175.14,175.13,22.17230496]
[1762169281515,0.2,175.14,175.13,23.37416383]
[1762169281722,0.2,175.16,175.15,16.462261]
[1762169281919,0.2,175.16,175.15,28.72395687]
[1762169282103,0.2,175.16,175.15,29.52611844]
[1762169282716,0.2,175.16,175.15,17.80611844]
[1762169282897,0.2,175.16,175.15,29.52611844]
[1762169283419,0.2,175.16,175.15,35.23551038]
[1762169285322,0.2,175.17,175.15,35.23551038]
[1762169285530,0.2,175.22,175.19,9.93098926]
[1762169285733,0.2,175.22,175.2,35.53916967]
[1762169286038,0.2,175.22,175.2,36.19916967]
[1762169286195,0.2,175.22,175.2,29.52573636]
[1762169286397,0.2,175.22,175.2,36.19916967]
[1762169287523,0.2,175.22,175.2,41.90693222]
[1762169287937,0.2,175.22,175.2,35.23349891]
[1762169289698,0.2,175.22,175.2,41.90693222]
[1762169290235,0.2,175.28,175.27,16.462261]
[1762169290406,0.2,175.28,175.27,28.182261]
[1762169290604,0.2,175.28,175.27,28.98442257]
[1762169291502,0.2,175.28,175.27,22.96990553]
[1762169291829,0.2,175.28,175.27,28.842261]
[1762169292208,0.2,175.28,175.27,34.54774396]
[1762169293711,0.2,175.28,175.27,34.68990553]
[1762169297127,0.2,175.34,175.3,30.52298926]
[1762169297328,0.2,175.34,175.33,27.26543331]
[1762169297535,0.2,175.34,175.33,38.98543331]
[1762169297739,0.2,175.34,175.33,45.34896379]
[1762169297938,0.2,175.34,175.33,55.27995305]
[1762169298452,0.2,175.34,175.33,54.47779148]
[1762169298813,0.2,175.34,175.33,55.13779148]
[1762169299243,0.2,175.34,175.33,55.27995305]
[1762169299419,0.2,175.34,175.33,55.82018358]
[1762169299932,0.1,175.36,175.35,0.14216157]
[1762169300132,0.1,175.36,175.35,28.30442257]
[1762169300311,0.1,175.36,175.35,28.96442257]
[1762169300717,0.1,175.42,175.39,30.38082769]
[1762169300935,0.1,175.42,175.41,16.462261]
[1762169301141,0.1,175.42,175.41,22.17056949]
[1762169301346,0.1,175.42,175.41,21.63098926]
[1762169301509,0.8,175.42,175.41,11.72]
[1762169301714,0.8,175.42,175.38,20.592]
[1762169301715,0.8,175.42,175.4,18.39343331]
[1762169301916,0.8,175.42,175.4,11.72]
[1762169302117,0.8,175.42,175.4,18.39343331]
[1762169302334,0.8,175.42,175.4,6.67343331]
[1762169304634,0.8,175.42,175.41,6.67343331]
[1762169304836,0.1,175.42,175.41,6.67343331]
[1762169305237,0.8,175.42,175.41,6.67343331]
[1762169307818,0.76,175.42,175.41,6.67343331]
[1762169308257,0.1,175.42,175.41,6.67343331]
[1762169308554,0.76,175.42,175.4,6.67343331]
[1762169309055,0.76,175.42,175.41,6.67343331]
[1762169311123,0.76,175.42,175.4,6.67343331]
[1762169312949,0.76,175.42,175.41,6.67343331]
[1762169313347,0.76,175.42,175.39,27.19035578]
[1762169313538,0.76,175.42,175.41,6.67343331]
[1762169313737,0.76,175.42,175.39,27.19035578]
[1762169313738,0.76,175.42,175.4,6.67343331]
[1762169313929,6.46064433,175.42,175.39,11.7]
[1762169314358,0.66,175.41,175.39,11.7]
[1762169314662,0.66,175.41,175.39,18.37343331]
[1762169314829,0.66,175.41,175.39,24.0750023]
[1762169315028,0.66,175.41,175.39,18.37343331]
[1762169315432,0.66,175.41,175.4,6.67343331]
[1762169315926,0.66,175.41,175.39,6.67343331]
[1762169316146,0.66,175.41,175.38,6.67343331]
[1762169316727,6.36103904,175.41,175.37,6.67343331]
[1762169316936,6.67343331,175.38,175.3,5.70450656]
[1762169317248,6.67343331,175.37,175.31,18.37343331]
[1762169317442,10.4427685,175.38,175.32,6.67343331]
[1762169317628,11.1027685,175.38,175.32,6.67343331]
[1762169317833,4.42933519,175.37,175.32,6.67343331]
[1762169318033,5.70255474,175.36,175.32,6.67343331]
[1762169318254,0.66,175.35,175.32,6.67343331]
[1762169318752,0.66,175.35,175.31,22.16620685]
[1762169318955,0.66,175.35,175.31,16.462261]
[1762169319450,0.66,175.35,175.32,6.67343331]
[1762169319656,0.66,175.35,175.31,15.49297243]
[1762169319858,0.66,175.35,175.32,6.67343331]
[1762169320370,0.66,175.35,175.32,4.51635548]
[1762169322374,4.4490822,175.35,175.32,10.22005198]
[1762169322543,0.66,175.35,175.32,10.22005198]
[1762169322743,0.65,175.34,175.32,10.22005198]
[1762169323043,0.65,175.35,175.32,10.22005198]
[1762169323643,0.65,175.35,175.33,10.21981222]
[1762169323849,0.65,175.35,175.32,4.51635548]
[1762169324361,0.65,175.35,175.33,25.10835548]
[1762169326062,3.80098682,175.34,175.32,10.22019442]
[1762169326269,0.65,175.35,175.32,10.22019442]
[1762169326456,3.8053571,175.34,175.32,10.22019442]
[1762169326655,0.65,175.35,175.32,10.22019442]
[1762169326866,3.80522681,175.34,175.32,10.22019442]
[1762169327071,0.65,175.35,175.32,10.22019442]
[1762169327276,3.80522858,175.34,175.32,10.22019442]
[1762169327571,0.65,175.35,175.32,10.22019442]
[1762169327751,3.80794839,175.34,175.32,10.22019442]
[1762169327952,0.65,175.35,175.32,10.22019442]
[1762169328152,4.45794839,175.34,175.32,10.22019442]
[1762169328352,0.65,175.34,175.32,10.22019442]
[1762169328761,0.65,175.34,175.33,4.51635548]
[1762169328967,4.46062468,175.34,175.33,4.51635548]
[1762169332282,10.16387522,175.34,175.3,25.10835548]
[1762169332452,4.51635548,175.36,175.3,30.81284891]
[1762169332453,4.46062468,175.33,175.3,30.81284891]
[1762169332648,3.81062468,175.32,175.31,4.51635548]
[1762169332853,3.81062468,175.32,175.31,15.02518317]
[1762169333266,0.6122975,175.35,175.31,15.02518317]
[1762169333478,3.82213835,175.34,175.31,10.50882769]
[1762169333683,3.82213835,175.33,175.31,9.78882769]
[1762169333882,4.70790138,175.39,175.32,0.72]
[1762169334172,3.82191401,175.38,175.34,20.592]
[1762169334368,3.82191401,175.37,175.34,20.592]
[1762169334549,3.82191401,175.36,175.35,5.70287995]
[1762169334753,3.82191401,175.36,175.35,10.21923543]
[1762169334953,3.82191401,175.36,175.34,20.592]
[1762169334954,3.82191401,175.36,175.34,26.29517635]
[1762169335149,10.40916924,175.4,175.34,26.29517635]
[1762169335150,3.82191401,175.35,175.34,36.08400404]
[1762169335356,3.82191401,175.35,175.34,40.60035952]
[1762169335755,3.82191401,175.35,175.32,0.72]
[1762169335756,4.47191401,175.35,175.32,9.78882769]
[1762169336051,4.47191401,175.34,175.32,25.10835548]
[1762169336250,0.65,175.34,175.32,25.10835548]
[1762169336680,0.65,175.34,175.32,30.81195262]
[1762169336866,0.65,175.34,175.32,30.81206784]
[1762169337458,0.65,175.34,175.32,25.10835548]
[1762169337666,0.65,175.34,175.32,30.81216888]
[1762169337865,0.65,175.34,175.32,30.81214822]
[1762169338984,0.65,175.34,175.32,30.81213729]
[1762169339564,0.65,175.36,175.33,4.51635548]
[1762169339765,0.65,175.36,175.34,4.51635548]
[1762169339983,0.65,175.36,175.33,4.51635548]
[1762169340388,0.65,175.36,175.33,1.83396068]
[1762169340589,0.65,175.38,175.35,7.53669189]
[1762169340793,0.65,175.38,175.35,1.83396068]
[1762169340794,3.82823356,175.37,175.35,1.83396068]
[1762169340975,0.65,175.38,175.34,1.83396068]
[1762169341174,4.47827026,175.37,175.32,26.2957984]
[1762169341487,0.65,175.37,175.33,1.83396068]
[1762169341789,0.65,175.37,175.34,1.83396068]
[1762169341994,4.47884257,175.38,175.35,1.83396068]
[1762169342284,4.47897448,175.38,175.35,1.83396068]
[1762169342657,0.65,175.37,175.35,1.83396068]
[1762169342865,0.65,175.37,175.32,36.08463267]
[1762169343064,0.65,175.37,175.34,1.83396068]
[1762169344087,5.70168737,175.39,175.34,2.50396068]
[1762169344262,9.53097179,175.39,175.34,2.50396068]
[1762169344582,0.65,175.38,175.34,2.50396068]
[1762169344782,0.65,175.38,175.34,8.20698105]
[1762169345588,5.70168737,175.39,175.37,1.83396068]
[1762169345589,3.82928442,175.39,175.37,1.83396068]
[1762169345894,0.75,175.42,175.38,22.42596068]
[1762169346087,4.57928442,175.42,175.41,1.83396068]
[1762169346262,0.75,175.42,175.41,1.83396068]
[1762169346461,4.57928442,175.42,175.41,1.83396068]
[1762169346682,0.75,175.42,175.38,9.78882769]
[1762169346884,0.65,175.41,175.38,9.78882769]
[1762169347089,0.65,175.41,175.38,15.49072794]
[1762169347383,0.1,175.42,175.4,1.83396068]
[1762169347570,0.1,175.42,175.41,1.83396068]
[1762169347782,0.75,175.42,175.41,1.83396068]
[1762169348571,0.1,175.42,175.41,1.83396068]
[1762169348891,177.74569298,175.5,175.41,1.83396068]
[1762169348892,0.65,175.5,175.45,20.592]
[1762169349201,0.65,175.49,175.48,1.83396068]
[1762169349367,0.65,175.49,175.47,1.83396068]
[1762169349562,0.65,175.49,175.45,20.592]
[1762169349775,0.65,175.49,175.44,1.83396068]
[1762169350777,6.34852827,175.49,175.44,1.83396068]
[1762169350995,6.34852827,175.49,175.44,7.53391469]
[1762169351184,0.65,175.48,175.44,7.53391469]
[1762169352005,0.65,175.48,175.46,1.83396068]
[1762169353419,0.65,175.5,175.47,1.83396068]
[1762169353599,0.65,175.51,175.49,1.83396068]
[1762169353902,0.65,175.53,175.5,1.83396068]
[1762169354071,0.65,175.52,175.5,1.83396068]
[1762169354274,4.4788956,175.54,175.51,1.83396068]
[1762169354477,0.65,175.54,175.52,1.83396068]
[1762169354887,0.1,175.55,175.52,1.83396068]
[1762169355095,0.65,175.54,175.52,1.83396068]
[1762169355302,0.75,175.55,175.52,1.83396068]
[1762169355477,0.65,175.54,175.52,1.83396068]
[1762169355678,0.65,175.54,175.51,1.83396068]
[1762169356401,0.1,175.55,175.51,1.83396068]
[1762169356703,0.1,175.55,175.52,1.83396068]
[1762169356888,0.1,175.55,175.52,7.53099851]
[1762169357202,0.1,175.55,175.54,1.83396068]
[1762169358422,0.1,175.55,175.53,11.62278837]
[1762169358796,0.1,175.55,175.51,15.48646017]
[1762169358797,0.75,175.55,175.51,15.48646017]
[1762169359008,0.75,175.55,175.51,17.32042085]
[1762169359205,0.75,175.55,175.51,17.99042085]
[1762169359391,0.75,175.55,175.52,1.83396068]
[1762169361112,0.1,175.55,175.53,1.83396068]
[1762169361500,0.1,175.55,175.49,20.592]
[1762169361501,8.28047733,175.55,175.49,1.83396068]
[1762169361701,1.83396068,175.54,175.48,11.62278837]
[1762169361909,2.48396068,175.54,175.48,17.32143417]
[1762169362109,0.65,175.53,175.48,17.32143417]
[1762169362312,0.65,175.53,175.49,1.83396068]
[1762169363396,6.34708693,175.53,175.48,11.62278837]
[1762169363612,6.34708693,175.53,175.48,7.53257186]
[1762169363920,0.65,175.52,175.48,1.83396068]
[1762169364115,0.65,175.52,175.49,20.592]
[1762169367495,5.69768104,175.51,175.43,14.25057902]
[1762169367694,5.69768104,175.51,175.45,1.83396068]
[1762169368002,0.67,175.5,175.45,1.83396068]
[1762169368515,0.67,175.5,175.45,2.51396068]
[1762169368722,0.67,175.5,175.45,8.21327994]
[1762169369401,6.36802098,175.5,175.45,5.69931926]
[1762169369603,6.36802098,175.5,175.45,8.21327994]
[1762169369813,0.67,175.49,175.45,8.21327994]
[1762169371835,6.36834038,175.49,175.45,7.53327994]
[1762169372202,0.67,175.49,175.45,8.21327994]
[1762169372622,0.67,175.49,175.46,1.83396068]
[1762169373121,0.67,175.51,175.46,2.51396068]
[1762169373816,6.36775893,175.51,175.46,8.21303897]
[1762169374209,0.67,175.5,175.46,8.21303897]
[1762169374723,0.67,175.5,175.46,2.51396068]
[1762169374919,0.67,175.5,175.46,1.83396068]
[1762169375106,0.67,175.5,175.45,5.69952966]
[1762169375313,0.67,175.5,175.46,1.83396068]
[1762169376313,0.67,175.5,175.46,7.53323338]
[1762169376515,6.36804686,175.5,175.46,8.21323338]
[1762169376826,0.67,175.5,175.46,8.21323338]
[1762169377207,0.67,175.49,175.46,2.51396068]
[1762169377908,0.67,175.49,175.45,1.83396068]
[1762169378118,0.67,175.49,175.46,0.68]
[1762169378629,0.67,175.49,175.45,7.53337501]
[1762169378839,0.67,175.49,175.43,34.84257902]
[1762169378840,6.36836659,175.49,175.43,1.83396068]
[1762169379133,8.20232727,175.49,175.43,11.62278837]
[1762169379331,2.50396068,175.48,175.43,9.78882769]
[1762169379826,0.67,175.47,175.43,9.78882769]
[1762169380033,6.36901265,175.47,175.43,9.78882769]
[1762169380404,0.67,175.46,175.43,15.4890984]
[1762169380606,6.36901265,175.47,175.43,18.00305908]
[1762169380924,6.36901265,175.47,175.43,17.32305692]
[1762169381123,6.37901265,175.47,175.43,18.00305692]
[1762169381633,6.37901265,175.47,175.44,1.83396068]
[1762169382021,5.69901265,175.47,175.43,2.51396068]
[1762169382228,0.68,175.46,175.43,2.51396068]
[1762169382411,0.68,175.46,175.43,3.54238876]
[1762169382606,0.68,175.46,175.43,2.86238876]
[1762169383314,0.68,175.46,175.42,2.86238876]
[1762169383518,4.4925501,175.46,175.41,19.03214169]
[1762169383712,0.68,175.45,175.41,19.03214169]
[1762169384328,6.37974224,175.45,175.4,5.70115051]
[1762169384531,6.37974224,175.45,175.4,8.56353927]
[1762169384732,0.68,175.44,175.4,9.24353927]
[1762169384921,0.68,175.44,175.4,5.70115051]
[1762169385117,4.4925501,175.44,175.39,18.35270068]
[1762169385534,0.68,175.43,175.39,19.03270068]
[1762169385738,0.68,175.43,175.4,2.86238876]
[1762169386033,0.68,175.45,175.41,2.86238876]
[1762169386215,0.68,175.44,175.41,2.86238876]
[1762169386528,4.4925501,175.44,175.39,9.78882769]
[1762169386730,4.4925501,175.44,175.4,2.86238876]
[1762169387035,0.68,175.43,175.4,2.86238876]
[1762169387525,0.68,175.43,175.4,3.54238876]
[1762169387725,0.68,175.43,175.39,15.49040426]
[1762169387933,0.68,175.43,175.4,2.86238876]
[1762169388738,0.68,175.43,175.4,8.5636382]
[1762169389143,0.68,175.43,175.4,9.2436382]
[1762169389436,0.68,175.43,175.4,2.86238876]
[1762169389945,5.6999666,175.44,175.41,2.86238876]
[1762169389946,0.68,175.44,175.41,2.86238876]
[1762169390313,60.39908478,175.47,175.43,2.86238876]
[1762169390538,3.82689661,175.46,175.45,2.86238876]
[1762169391517,4.50689661,175.46,175.45,2.86238876]
[1762169391722,4.50689661,175.46,175.43,2.86238876]
[1762169391923,3.82689661,175.45,175.43,2.86238876]
[1762169392119,0.68,175.46,175.43,3.54238876]
[1762169392337,3.82856622,175.45,175.44,2.86238876]
[1762169392642,0.68,175.46,175.44,2.86238876]
[1762169394229,4.50869226,175.46,175.44,2.86238876]
[1762169394940,4.50869226,175.46,175.43,2.86238876]
[1762169395143,3.82869226,175.45,175.43,2.86238876]
[1762169395930,3.82869226,175.45,175.42,3.54238876]
[1762169396125,4.50869226,175.45,175.42,2.86238876]
[1762169396320,4.50869226,175.45,175.42,8.56297224]
[1762169396740,4.50869226,175.45,175.42,9.22297224]
[1762169396944,3.82869226,175.45,175.42,9.22297224]
[1762169397133,0.72,175.46,175.43,2.86238876]
[1762169397335,0.72,175.46,175.44,2.86238876]
[1762169397735,4.54790362,175.46,175.44,2.86238876]
[1762169398043,0.72,175.46,175.44,2.86238876]
[1762169398849,3.82777018,175.47,175.44,2.86238876]
[1762169399026,4.54777018,175.47,175.44,2.86238876]
[1762169399226,0.72,175.46,175.43,2.86238876]
[1762169400328,0.72,175.46,175.43,5.70019129]
[1762169400553,0.72,175.46,175.42,9.22291129]
[1762169400932,6.419369,175.46,175.42,9.22291129]
[1762169401147,6.419369,175.46,175.42,8.56291129]